Cogmind - Beta 14 @@@ ROGUE MODE // 2024.08.19 @ 10:39:20 Player: KN-OKO Result: Destroyed by WL-MPS(R) with Subdweller Machine Gun Performance ------------- Evolutions (0) 0 Regions Visited (2) 400 Robots Destroyed (16) 80 Value Destroyed (436) 436 Prototype IDs (11) 220 Alien Tech Used (0) 0 Bonus (0) 0 TOTAL SCORE: 1136 Bonus ------- None Cogmind --------- Core Integrity 0/250 Matter 300/300 Energy 249/250 System Corruption 0% Temperature Cool (0) Movement Rolling (115) Ox1 Location -10/Subcaves Parts ------- > --- POWER (1) -------- Ion Engine > --- PROPULSION (2) --- Aluminum Leg Compact Wheel > --- UTILITY (2) ------ Disposable Heat Sink Large Storage Unit > --- WEAPON (2) ------- EM Pulse Gun Beam Rifle > --- INVENTORY (15) --- Arachnoskeleton Wheel Subdweller Optics Subdweller Machine Gun Piercing Trap Peak State ------------ > --- POWER ------------ Ion Engine > --- PROPULSION ------- Light Treads Aluminum Leg > --- UTILITY ---------- Large Storage Unit Sensor Array > --- WEAPON ----------- Riot Gun Beam Rifle > --- INVENTORY -------- Aluminum Leg Arachnoskeleton Wheel Compact Wheel EM Pulse Gun Piercing Trap [Rating: 12] Favorites ----------- Power Ion Engine Engine Ion Engine Propulsion Light Treads Treads Light Treads Leg Aluminum Leg Wheel Compact Wheel Utility Large Storage Unit Device Sensor Array Storage Large Storage Unit Protection Light Armor Plating Weapon Assault Rifle Energy Gun Beam Rifle Ballistic Gun Assault Rifle Special Weapon Mining Laser Build | -11 -10 -10 ------- Run | Yrd Mat Sub Slots Evolved . | . . . Power . | . . . Propulsion . | . . . Utility . | . . . Weapon . | . . . Parts Attached 33 | 7 10 16 Power 3 | 1 1 1 Engine 3 | 1 1 1 Core . | . . . Reactor . | . . . Propulsion 7 | 2 . 5 Treads 3 | 2 . 1 Leg 2 | . . 2 Wheel 2 | . . 2 Hover . | . . . Flight . | . . . Utility 12 | 2 8 2 Device 6 | 1 3 2 Storage 3 | 1 2 . Processor . | . . . Hackware . | . . . Protection 3 | . 3 . Artifact . | . . . Weapon 11 | 2 1 8 Energy Gun 3 | . . 3 Energy Cannon . | . . . Ballistic Gun 5 | 2 . 3 Ballistic Cannon . | . . . Launcher . | . . . Special Weapon 3 | . 1 2 Impact Weapon . | . . . Slashing Weapon . | . . . Piercing Weapon . | . . . Special Melee Weapon . | . . . Unidentified Prototypes . | . . . Parts Lost 14 | . 1 13 Power 1 | . . 1 Propulsion 5 | . . 5 Utility 3 | . 1 2 Weapon 5 | . . 5 Highest Loss Streak 4 | . 1 4 To Critical Strikes . | . . . Average Slot Usage (%) 99 | . 100 99 Engine 14 | . 14 14 Treads 23 | . 28 21 Leg 4 | . . 5 Device 13 | . 12 13 Storage 14 | . 14 14 Energy Gun 4 | . . 6 Ballistic Gun 19 | . 26 17 Special Weapon 3 | . 1 4 Peak Build Rating 12 | 7 7 12 Average Rating 8 | 5 6 9 On Entrance 4 | . 7 7 Naked Turns . | . . . Heaviest Build 49 | 14 49 31 Greatest Support 40 | 40 40 40 Greatest Overweight (x) 1 | 1 1 1 Average Overweight (x) . | . . . Largest Inventory Capacity 20 | 8 20 15 Average Capacity 13 | 7 11 15 Most Carried 14 | 6 9 14 Average Carried 9 | 4 7 10 Final Capacity 15 | 8 15 15 Final Carried 8 | 6 8 7 Class Distribution -------------------- 100% | Mutant Dominant Class ---------------- Mutant | -10/Materials Mutant | -10/Subcaves Resources | -11 -10 -10 ----------- Run | Yrd Mat Sub Matter Collected 640 | 298 147 195 Remotely . | . . . Salvage Created 627 | 107 190 330 Parts 26 | 5 10 11 Haulers Intercepted . | . . . Recyclers Shooed . | . . . Parts Field Recycled . | . . . Retrieved Matter . | . . . Parts Self-Destructed 4 | . . 4 Prevented . | . . . Kills | -11 -10 -10 ------- Run | Yrd Mat Sub Combat Hostiles Destroyed 13 | . 6 7 Guns 13 | . 6 7 Classes Destroyed 6 | 2 2 2 Tunneler 1 | 1 . . Recycler 2 | 1 1 . Swarmer 3 | . 3 . Grunt 3 | . 3 . Sentry 1 | . . 1 Subdweller 6 | . . 6 Best Kill Streak 5 | 2 5 2 Combat Bots Only 3 | . 3 2 Max Kills in Single Turn 1 | 1 1 1 Gunslinging . | . . . Exploded . | . . . Melee . | . . . Uniques/NPCs Destroyed . | . . . Combat | -11 -10 -10 -------- Run | Yrd Mat Sub Hostile Shots Fired 108 | . 33 75 Missed 15 | . 3 12 Damage Taken 1712 | . 270 1442 Core 259 | . 30 229 Absorbed by Shields . | . . . Core Remaining (%) 100 | 100 . . Volleys Fired 92 | 7 26 59 Largest 2 | 2 2 2 Hottest 120 | 40 100 120 Shots Fired 155 | 14 44 97 Gun 123 | 14 36 73 Cannon . | . . . Launcher . | . . . Special 32 | . 8 24 Kinetic 83 | 14 36 33 Thermal 55 | . 8 47 Explosive . | . . . Electromagnetic 17 | . . 17 Robot Hit Streak 14 | 12 13 14 Robot Miss Streak 3 | . 3 3 Penetration Max . | . . . Secondary Targets . | . . . Shots Hit Robots 99 | 12 20 67 Core Hits 29 | 3 10 16 Critical Kills . | . . . Critical Parts Destroyed . | . . . Critical Strikes 4 | . . 4 Burn 3 | . . 3 Destroy 1 | . . 1 Melee Attacks . | . . . Impact . | . . . Slashing . | . . . Piercing . | . . . Sneak Attacks . | . . . Combat Hostiles . | . . . Follow-up Attacks . | . . . Damage Inflicted 1184 | 130 226 828 Guns 1163 | 130 226 807 Cannons . | . . . Explosions . | . . . Melee . | . . . Ramming . | . . . Kinetic 662 | 130 226 306 Thermal 330 | . . 330 Explosive . | . . . Electromagnetic 192 | . . 192 Impact . | . . . Slashing . | . . . Piercing . | . . . Highest Corruption . | . . . Average Corruption . | . . . Corruption Purged . | . . . Corruption Blocked . | . . . Overload Shots . | . . . Overflow Damage . | . . . Projectiles . | . . . Explosions . | . . . Melee . | . . . Knockbacks . | . . . Impact . | . . . Kinetic . | . . . Secondary . | . . . Self-Inflicted Damage . | . . . Shots . | . . . Rammed . | . . . Targets Rammed 1 | . 1 . Kicked . | . . . Crushed 1 | . 1 . Highest Temperature 60 | . 60 1 Average Temperature 17 | . 17 1 Received Heat Transfer 243 | . 66 177 Siege Activations . | . . . Robots Corrupted . | . . . Combat Hostiles . | . . . Parts Fried 3 | . . 3 Impact Corruptions . | . . . Robots Melted . | . . . Combat Hostiles . | . . . Parts Melted 4 | . . 4 Heat Transferred 1245 | . . 1245 Parts Sabotaged . | . . . Parts Stolen . | . . . Parts Stripped . | . . . Power Chain Reactions . | . . . Alert | -11 -10 -10 ------- Run | Yrd Mat Sub Peak Influence 176 | 10 176 . Initial 6 | . 6 . Average 22 | 3 25 . Maximum Alert Level . | . . . Low Security (%) 100 | 100 100 . Level 1 . | . . . Level 2 . | . . . Level 3 . | . . . Level 4 . | . . . Level 5 . | . . . High Security . | . . . Max Security . | . . . Squads Dispatched 1 | . 1 . Investigation 1 | . 1 . Extermination . | . . . Reinforcement . | . . . Assault . | . . . Garrison . | . . . Intercept . | . . . Searches Triggered . | . . . Construction Impeded . | . . . Haulers Reinforced . | . . . Active Scanning Responses . | . . . Cargo Convoy Interrupts . | . . . Stealth | -11 -10 -10 --------- Run | Yrd Mat Sub Distress Signals 1 | . 1 . Communications Jammed . | . . . Distress Signals . | . . . Times Spotted 19 | . 11 8 Peak Tracking Total 6 | . 6 2 Tactical Retreats 1 | . 1 . Traps | -11 -10 -10 ------- Run | Yrd Mat Sub Traps Triggered 6 | . 1 5 Indirectly . | . . . Trap Hack Attempts . | . . . Triggered . | . . . Disarmed . | . . . Reprogrammed . | . . . Reused . | . . . Traps Extracted . | . . . Installed . | . . . Triggered . | . . . Most Traps Carried 1 | . . 1 Machines | -11 -10 -10 ---------- Run | Yrd Mat Sub Machines Disabled 1 | . . 1 Max in Single Turn 1 | . . 1 Machines Repaired . | . . . Machines Dismantled . | . . . Machines Sabotaged . | . . . Overloaded Fab Kills . | . . . Hacking | -11 -10 -10 --------- Run | Yrd Mat Sub Machines Accessed 1 | . . 1 Terminals . | . . . Fabricators . | . . . Repair Stations . | . . . Recycling Units . | . . . Scanalyzers . | . . . Garrison Access . | . . . Total Hacks 1 | . . 1 Successful 1 | . . 1 Failed . | . . . Catastrophic . | . . . Database Lockouts . | . . . Manual . | . . . Terminals . | . . . Fabricators . | . . . Repair Stations . | . . . Recycling Units . | . . . Scanalyzers . | . . . Garrison Access . | . . . Terminal Hacks 1 | . . 1 Derelict Proto ID Bank 1 | . . 1 Fabricator Hacks . | . . . Repair Station Hacks . | . . . Recycling Unit Hacks . | . . . Scanalyzer . | . . . Garrison Access Hacks . | . . . Unauthorized Hacks . | . . . Terminals . | . . . Fabricators . | . . . Repair Stations . | . . . Recycling Units . | . . . Scanalyzers . | . . . Garrison Access . | . . . Data Cores Recovered . | . . . Used . | . . . Hacking Detections . | . . . Full Trace Events . | . . . Feedback Events . | . . . Feedback Blocked . | . . . Robot Schematics Acquired . | . . . Robots Built . | . . . Authchips . | . . . Time . | . . . Total Robot Build Rating . | . . . Part Schematics Acquired . | . . . Parts Built . | . . . Authchips . | . . . Time . | . . . Total Part Build Rating . | . . . Parts Repaired . | . . . Time . | . . . Parts Recycled . | . . . Recycled Matter . | . . . Retrieved Matter . | . . . Retrieved Components . | . . . Parts Scanalyzed . | . . . Part Schematics Acquired . | . . . Parts Damaged . | . . . Bothacking | -11 -10 -10 ------------ Run | Yrd Mat Sub Used RIF Installer . | . . . Robots Hacked . | . . . Non-combat . | . . . Combat . | . . . Robot Hacks Applied . | . . . Relay Couplers Released . | . . . Fabnet Peak Effective % . | . . . Robots Rewired . | . . . Allies Hacked . | . . . Hacks Repelled . | . . . Allies | -11 -10 -10 -------- Run | Yrd Mat Sub Total Allies . | . . . Largest Group . | . . . Highest-Rated Group . | . . . Highest-Rated Ally . | . . . Total Orders . | . . . Ally Attacks . | . . . Total Damage . | . . . Kills . | . . . Allies Corrupted . | . . . Allies Melted . | . . . Intel | -11 -10 -10 ------- Run | Yrd Mat Sub Robot Analysis Total . | . . . Derelict Logs Recovered . | . . . Drone Launches . | . . . Drone Recoveries . | . . . Exploration | -11 -10 -10 ------------- Run | Yrd Mat Sub Turns Passed 2414 | 112 647 1655 Spaces Moved 1074 | 47 225 802 Core 2 | 2 . . Treads 927 | 45 225 657 Legs 110 | . . 110 Wheels 35 | . . 35 Hover . | . . . Flight . | . . . Fastest Speed 50 | 50 160 115 Average Speed 167 | 156 177 165 Slowest Speed 240 | 160 240 240 Overloaded Moves . | . . . Propulsion Burnouts . | . . . Robots Hopped . | . . . Cave-ins Triggered . | . . . Exploration Rate (%) 29 | 4 39 46 Regions Visited 2 Branch Regions 1 Pre-discovered Areas . | . . . Known Exits Taken . | . . . Unknown Exits Taken 2 | 1 1 . Scrap Searched 3 | . . 3 Spaces Dug 1 | . 1 . Terrain Destroyed 1 | . 1 . Melee . | . . . Projectile 1 | . 1 . AOE . | . . . Terrain Rammed . | . . . Walls Destroyed . | . . . Machines Disabled . | . . . Actions | -11 -10 -10 --------- Run | Yrd Mat Sub Total 1471 | 70 414 987 Wait 247 | 3 146 98 Move 1072 | 46 224 802 Hop . | . . . Pick Up 20 | 7 4 9 Fast Attach 8 | 6 . 2 Attach 15 | 1 1 13 Detach 2 | . . 2 Swap 10 | . 9 1 Drop 4 | . 3 1 Fire 92 | 7 26 59 Melee . | . . . Ram . | . . . Kick . | . . . Crush 1 | . 1 . Escape Stasis . | . . . Rewire . | . . . Trap . | . . . Miscellaneous . | . . . Route ------- -11/Scrapyard -10/Materials (discovered 2 exits: [*Mat] / *Sub) -10/Subcaves (discovered 1 exit: [*Mat]) History --------- Turn | Location | Event 37 | -11/Scrapyard | Discovered new exit (range 16) 113 | -11/Scrapyard | Entered Materials 304 | -10/Materials | Build established: Mutant 613 | -10/Materials | Discovered new exit (range 15) 755 | -10/Materials | Discovered new exit (range 3) 760 | -10/Materials | Entered Subcaves 765 | -10/Subcaves | Discovered new exit (range 12) 936 | -10/Subcaves | Disturbed a concealed Subdweller 1418 | -10/Subcaves | Visited 4L-MR0's lab 1440 | -10/Subcaves | Found Arachnoskeleton 1516 | -10/Subcaves | A swath of the cavern ceiling suddenly collapsed 1606 | -10/Subcaves | Core integrity fell below 50% 1768 | -10/Subcaves | A swath of the cavern ceiling suddenly collapsed 2019 | -10/Subcaves | Lost 3 parts (1p1n1w) 2133 | -10/Subcaves | Core integrity fell below 20% 2173 | -10/Subcaves | Lost 4 parts (1n1u2w) 2415 | -10/Subcaves | Destroyed by WL-MPS(R) with Subdweller Machine Gun Last Messages --------------- 02174_ Acquired Disposable Heat Sink. 02175_ Subatomizers dissect the Sub. Power Source. 02176_ Acquired 10 matter. 02187_ Subatomizers dissect the Sub. Power Source. 02193_ Acquired Corrupted Sub. Optics. 02199_ Subatomizers dissect the Sub. Power Source. 02209_ Subatomizers dissect the Corrupted Sub. Power Source. 02387_ ZJ-Z84(R) suffers critical hit (Burn). 02388_ Aluminum Leg destroyed. 02391_ ZJ-Z84(R) suffers critical hit (Burn). 02403_ Destroyed Scrap Shield. 02406_ Sub. Laser fried. 02406_ Sub. Optics fried. 02406_ Sub. Power Source fried. 02406_ ZJ-Z84(R) destroyed. 02409_ Acquired 10 matter. Map ----- +----------------------------------------------------+ | #""#"##??????????????????????????????????????????? | | """""#???????????????????????????????????????????? | | #""###???????????????????????????????????????????? | | ###?????????????????????????????????????????????? | | """# ???????????????????????????????????????????? | | #""# #??????????????????????????????????????????? | | #######??????????????????????????????????????????? | | ?????????????????????????????????????????????????? | | ?????????????????????????????????????????????????? | | ?????????????????????????????????????????????????? | | ?????????????????????????????????????????????????? | | ?????????????????????????????????????????????????? | | ?????????????????????????????????????????????????? | | ?????????????????????????????????????????????????? | | ?????????????????????????????????????????????????? | | ??????????????#"" ???????????????????????????????? | | ??????????????#"""???????????????????????????????? | | ??????????????#"< "??????????????????????????????? | | ??????????????# " "??????????????????????????????? | | ??????????????#"" <"######???????????????????????? | | ???????????????# " # #???????????????????????? | | ?????###???????#" &% ##???????????????????????? | | ????## ##???#### ^ ## #???????????????????????? | | ????# #???# ######< ###?????????????????????? | | ???## ##### ### < ## #??????????????? | | ##?# ## @ #??????????????? | | ### #### #??????????????? | | ### ## #??????????????? | | ###### ##???#??????????????? | | #????# ### ##???????????????????? | | #????# #### #????????????????????? | | ##???## #?# ##????????????????????? | | ##???## ### ### #?????????????????????? | | ##???# #?### #?????????????????????? | | #??## ##??## #?????????????????????? | | #?## #???? #????????????????????? | | ### ##?# #???? ????????????????????? | | ?## #??## ## #???? R ???????????????????? | | ?# ###?## #######???? ????????????????????? | | ?# #### #????????? ?????????????????????? | | ### ###????????? ?????????????????????? | | ### ##???????????????????????????????????? | | #?# "## #????????????????????????????????????? | | #?## "####"#????????????????????????????????????? | | #??##""??###????????????????????????????????????? | | #???#""?????????????????????????????????????????? | | ##???###?????????????????????????????????????????? | | ?????????????????????????????????????????????????? | | ?????????????????????????????????????????????????? | | ?????????????????????????????????????????????????? | +----------------------------------------------------+ Best States ------------- Heat Dissipation 25 Coolant Potential 50 Energy Generation 10 Energy Capacity 250 Matter Stores 300 Matter Capacity 300 Sight Range 16 Robot Scan Range 14 Terrain Scan Density 10 Armor Coverage 150 Evasion (%) 40 Recoil Reduction 2 Item Schematics ----------------- None Robot Schematics ------------------ None Fabricated ------------ Nothing Alien Tech Used ----------------- None Achievements -------------- None Challenges ------------ None Game ------ Seed ModifiedFlyingAmplifier Manual? 0 Play Time 00:16:20 Cumulative 427.7 hours Start 2024.08.19 @ 10:27:28 End 2024.08.19 @ 10:39:20 Sessions 1 Manual Loads 0 Difficulty Rogue Special Mode None Game No. 298 Rogue 298 Adventurer 0 Explorer 0 Win Type - Total 38 Types 32/0/4/2/0/0/0/0/0 Lore% 68 Gallery% 83 Achievement% 71 Wizard Run 0 Options --------- Layout 1 ASCII 0 Keyboard 1 Movement Numpad Keybinds 0 Fullscreen 2 Font 32/SmallcapsGlow Map View 50x35 Zoom Use 0% Tactical HUD 1 Map Filters NONE Filters NONE Steam 1 RUN: 10019026-0329-49fc-a34c-9fd2f1456746